[Event "*** Titled Tuesday Blitz"]
[Site "Chess.com"]
[Date "2020.11.24"]
[Round "5"]
[White "RobPeresian"]
[Black "PavelShkapenko"]
[Result "0-1"]
[WhiteElo "2444"]
[BlackElo "2681"]
[TimeControl "180+1"]
[EndTime "11:13:12 PST"]
[Termination "PavelShkapenko won by resignation"]

1. Nf3 {[%clk 0:02:05.8]} 1... Nf6 {[%clk 0:02:57.5]} 2. c4 {[%clk 0:02:05.9]}
2... e6 {[%clk 0:02:53.4]} 3. Nc3 {[%clk 0:02:06.1]} 3... b6 {[%clk 0:02:50.6]}
4. g3 {[%clk 0:02:06.1]} 4... Bb7 {[%clk 0:02:49.8]} 5. Bg2 {[%clk 0:02:06.7]}
5... Bb4 {[%clk 0:02:49.1]} 6. Qc2 {[%clk 0:02:05.3]} 6... O-O {[%clk
0:02:48.9]} 7. O-O {[%clk 0:02:05.8]} 7... d5 {[%clk 0:02:41.9]} 8. cxd5 {[%clk
0:02:04.6]} 8... exd5 {[%clk 0:02:41.8]} 9. d4 {[%clk 0:02:01.7]} 9... a6 {[%clk
0:02:34.5]} 10. Bg5 {[%clk 0:01:58.8]} 10... Nbd7 {[%clk 0:02:34.3]} 11. a3
{[%clk 0:01:57.1]} 11... Bd6 {[%clk 0:02:31.6]} 12. Rac1 {[%clk 0:01:55.9]}
12... h6 {[%clk 0:02:31.6]} 13. Bxf6 {[%clk 0:01:54.7]} 13... Nxf6 {[%clk
0:02:32.5]} 14. Rfd1 {[%clk 0:01:54.4]} 14... Qe7 {[%clk 0:02:32.1]} 15. e3
{[%clk 0:01:52]} 15... Rfe8 {[%clk 0:02:24.3]} 16. Ne1 {[%clk 0:01:52.1]} 16...
h5 {[%clk 0:02:14.9]} 17. Nd3 {[%clk 0:01:47.3]} 17... h4 {[%clk 0:02:15.1]} 18.
b4 {[%clk 0:01:45.3]} 18... hxg3 {[%clk 0:02:14.8]} 19. hxg3 {[%clk 0:01:45.5]}
19... a5 {[%clk 0:02:09.7]} 20. Nb5 {[%clk 0:01:40.9]} 20... axb4 {[%clk
0:02:09.3]} 21. Nxd6 {[%clk 0:01:37.1]} 21... cxd6 {[%clk 0:01:50.8]} 22. axb4
{[%clk 0:01:36]} 22... Ba6 {[%clk 0:01:50.3]} 23. Nf4 {[%clk 0:01:34.5]} 23...
Bc4 {[%clk 0:01:50]} 24. Qf5 {[%clk 0:01:31.8]} 24... Ra4 {[%clk 0:01:12.6]} 25.
Nxd5 {[%clk 0:01:24.6]} 25... Bxd5 {[%clk 0:01:12.1]} 26. Bxd5 {[%clk
0:01:25.5]} 26... Rxb4 {[%clk 0:01:05.7]} 27. Rc6 {[%clk 0:01:19.4]} 27... Rb2
{[%clk 0:00:32.5]} 28. Rdc1 {[%clk 0:01:19]} 28... Nxd5 {[%clk 0:00:17.4]} 29.
Qxd5 {[%clk 0:01:19.9]} 29... Qf6 {[%clk 0:00:17.5]} 30. R6c2 {[%clk 0:01:05.2]}
30... Rxc2 {[%clk 0:00:17]} 31. Rxc2 {[%clk 0:01:06.1]} 31... Qg6 {[%clk
0:00:16.5]} 32. Rc6 {[%clk 0:01:01.6]} 32... Re6 {[%clk 0:00:16.2]} 33. Rxb6
{[%clk 0:01:00.6]} 33... Kh7 {[%clk 0:00:16.3]} 34. Rb5 {[%clk 0:00:58.6]} 34...
Qd3 {[%clk 0:00:14.4]} 35. Qf5+ {[%clk 0:00:57.5]} 35... Qxf5 {[%clk 0:00:13.8]}
36. Rxf5 {[%clk 0:00:58.3]} 36... Kg6 {[%clk 0:00:14.4]} 37. Rd5 {[%clk
0:00:57]} 37... Kf6 {[%clk 0:00:14.5]} 38. Kg2 {[%clk 0:00:55]} 38... Ke7 {[%clk
0:00:14.7]} 39. Kf3 {[%clk 0:00:55.1]} 39... Rf6+ {[%clk 0:00:14.5]} 40. Ke2
{[%clk 0:00:55.3]} 40... Ke6 {[%clk 0:00:14.1]} 41. Ra5 {[%clk 0:00:55.3]} 41...
Rh6 {[%clk 0:00:13.3]} 42. e4 {[%clk 0:00:54]} 42... Rh1 {[%clk 0:00:12.4]} 43.
f4 {[%clk 0:00:50.4]} 43... Rb1 {[%clk 0:00:11.5]} 44. Ra6 {[%clk 0:00:44.5]}
44... Ke7 {[%clk 0:00:08.7]} 45. d5 {[%clk 0:00:39.3]} 45... Rb3 {[%clk
0:00:08.1]} 46. Kf2 {[%clk 0:00:38.7]} 46... Rc3 {[%clk 0:00:07.7]} 47. g4
{[%clk 0:00:33.5]} 47... Rb3 {[%clk 0:00:06.6]} 48. g5 {[%clk 0:00:33.5]} 48...
g6 {[%clk 0:00:06.8]} 49. Ra7+ {[%clk 0:00:32.5]} 49... Ke8 {[%clk 0:00:07]} 50.
Rc7 {[%clk 0:00:23.8]} 50... Ra3 {[%clk 0:00:04.6]} 51. Rc2 {[%clk 0:00:18.4]}
51... Rb3 {[%clk 0:00:04.1]} 52. Rd2 {[%clk 0:00:18.5]} 52... Ke7 {[%clk
0:00:03.5]} 53. e5 {[%clk 0:00:16.8]} 53... Ra3 {[%clk 0:00:03.6]} 54. Re2
{[%clk 0:00:13.2]} 54... Rb3 {[%clk 0:00:03.5]} 55. exd6+ {[%clk 0:00:13.1]}
55... Kxd6 {[%clk 0:00:03.7]} 56. Re7 {[%clk 0:00:13.6]} 56... Kxe7 {[%clk
0:00:03.4]} 57. Ke2 {[%clk 0:00:14]} 57... Kd6 {[%clk 0:00:04]} 58. Kf2 {[%clk
0:00:14.9]} 58... Kxd5 {[%clk 0:00:04.6]} 59. Ke2 {[%clk 0:00:15]} 59... Rb4
{[%clk 0:00:05.2]} 60. Kf3 {[%clk 0:00:14.3]} 60... Rb3+ {[%clk 0:00:05.8]} 61.
Kg4 {[%clk 0:00:14.7]} 61... Ke4 {[%clk 0:00:06.7]} 62. f5 {[%clk 0:00:14.1]}
62... gxf5+ {[%clk 0:00:06.8]} 63. Kh4 {[%clk 0:00:15]} 63... Kf4 {[%clk
0:00:06]} 64. g6 {[%clk 0:00:14.4]} 64... Rb8 {[%clk 0:00:05.6]} 65. g7 {[%clk
0:00:14.1]} 65... Rg8 {[%clk 0:00:05.5]} 66. Kh5 {[%clk 0:00:14.5]} 66... Rxg7
{[%clk 0:00:05.8]} 67. Kh6 {[%clk 0:00:15.4]} 67... Rg4 {[%clk 0:00:05.9]} 0-1

[Event "*** Titled Tuesday Blitz"]
[Site "Chess.com"]
[Date "2020.11.24"]
[Round "5"]
[White "Grieve72"]
[Black "Julianos82"]
[Result "0-1"]
[WhiteElo "2404"]
[BlackElo "2330"]
[TimeControl "180+1"]
[EndTime "11:13:16 PST"]
[Termination "Julianos82 won by resignation"]

1. e4 {[%clk 0:03:00.9]} 1... c5 {[%clk 0:02:59.4]} 2. Nc3 {[%clk 0:02:59.7]}
2... a6 {[%clk 0:02:57.7]} 3. g3 {[%clk 0:02:52.9]} 3... b5 {[%clk 0:02:57]} 4.
Bg2 {[%clk 0:02:53.5]} 4... Bb7 {[%clk 0:02:57.2]} 5. f4 {[%clk 0:02:46.8]} 5...
e6 {[%clk 0:02:55.4]} 6. d3 {[%clk 0:02:30.9]} 6... Nf6 {[%clk 0:02:53.9]} 7.
Nf3 {[%clk 0:02:28.7]} 7... b4 {[%clk 0:02:53.7]} 8. Ne2 {[%clk 0:02:26.5]} 8...
d5 {[%clk 0:02:53.8]} 9. e5 {[%clk 0:02:26.8]} 9... Nfd7 {[%clk 0:02:53]} 10.
O-O {[%clk 0:02:18.8]} 10... Nc6 {[%clk 0:02:52.9]} 11. d4 {[%clk 0:02:05.4]}
11... cxd4 {[%clk 0:02:49.7]} 12. Nexd4 {[%clk 0:02:01.6]} 12... Bc5 {[%clk
0:02:43.4]} 13. Be3 {[%clk 0:01:58.8]} 13... Qb6 {[%clk 0:02:43.1]} 14. Kh1
{[%clk 0:01:53.7]} 14... O-O {[%clk 0:02:38.3]} 15. Qd2 {[%clk 0:01:35.6]} 15...
Rfc8 {[%clk 0:02:33.2]} 16. Rfe1 {[%clk 0:01:31.5]} 16... a5 {[%clk 0:02:12.5]}
17. Rad1 {[%clk 0:01:24.2]} 17... Nxd4 {[%clk 0:02:01.8]} 18. Bxd4 {[%clk
0:01:19.4]} 18... Bxd4 {[%clk 0:02:00.1]} 19. Nxd4 {[%clk 0:01:17.6]} 19... Nc5
{[%clk 0:01:58.2]} 20. Qe3 {[%clk 0:01:08.1]} 20... Ne4 {[%clk 0:01:54.2]} 21.
Bxe4 {[%clk 0:00:44.7]} 21... dxe4 {[%clk 0:01:55.1]} 22. Nf5 {[%clk 0:00:40.7]}
22... Qxe3 {[%clk 0:01:30.7]} 23. Nxe3 {[%clk 0:00:41.6]} 23... Rd8 {[%clk
0:01:26.6]} 24. Kg1 {[%clk 0:00:39.3]} 24... Kf8 {[%clk 0:01:26]} 25. Kf2 {[%clk
0:00:36.2]} 25... Ke7 {[%clk 0:01:22.8]} 26. h4 {[%clk 0:00:14.9]} 26... f5
{[%clk 0:01:21.3]} 27. Nc4 {[%clk 0:00:08]} 27... Bd5 {[%clk 0:01:13.6]} 28. Nb6
{[%clk 0:00:02.7]} 28... Ra6 {[%clk 0:01:09]} 29. Nxd5+ {[%clk 0:00:02.4]} 29...
exd5 {[%clk 0:01:07.5]} 30. Ke3 {[%clk 0:00:03.3]} 30... Rc6 {[%clk 0:01:05.6]}
31. Re2 {[%clk 0:00:03.7]} 31... Ke6 {[%clk 0:01:04]} 32. Kd2 {[%clk 0:00:02.1]}
32... d4 {[%clk 0:01:03.4]} 33. Ke1 {[%clk 0:00:01.4]} 33... Kd5 {[%clk
0:00:54.9]} 34. Red2 {[%clk 0:00:01.8]} 34... Kc5 {[%clk 0:00:54.6]} 35. Ke2
{[%clk 0:00:02.1]} 35... a4 {[%clk 0:00:53.8]} 36. h5 {[%clk 0:00:02.6]} 36...
Rc7 {[%clk 0:00:53.6]} 37. Ke1 {[%clk 0:00:02.6]} 37... Rcd7 {[%clk 0:00:53.6]}
38. Ke2 {[%clk 0:00:03.1]} 38... a3 {[%clk 0:00:53.3]} 39. b3 {[%clk 0:00:03.2]}
39... g6 {[%clk 0:00:49.4]} 40. h6 {[%clk 0:00:02.5]} 40... Rc7 {[%clk
0:00:47.1]} 41. Ke1 {[%clk 0:00:02.7]} 41... Rc6 {[%clk 0:00:47.1]} 42. Ke2
{[%clk 0:00:03]} 42... Re6 {[%clk 0:00:47.5]} 43. Ke1 {[%clk 0:00:03.2]} 43...
g5 {[%clk 0:00:47.8]} 44. fxg5 {[%clk 0:00:04.1]} 44... Rxe5 {[%clk 0:00:47.9]}
45. Ke2 {[%clk 0:00:05]} 45... Re6 {[%clk 0:00:47.5]} 46. Rf1 {[%clk 0:00:05.2]}
46... Re5 {[%clk 0:00:47.1]} 47. Rf4 {[%clk 0:00:05.7]} 47... d3+ {[%clk
0:00:44.4]} 48. Ke3 {[%clk 0:00:03.7]} 48... Red5 {[%clk 0:00:41]} 49. cxd3
{[%clk 0:00:02.9]} 49... Rxd3+ {[%clk 0:00:40.1]} 50. Rxd3 {[%clk 0:00:03.4]}
50... Rxd3+ {[%clk 0:00:39.5]} 51. Ke2 {[%clk 0:00:04.3]} 51... Rxg3 {[%clk
0:00:34.5]} 52. Rxf5+ {[%clk 0:00:04.4]} 52... Kd4 {[%clk 0:00:35]} 53. Rb5
{[%clk 0:00:03.4]} 53... Kc3 {[%clk 0:00:34.7]} 54. Kf2 {[%clk 0:00:03.5]} 54...
Rf3+ {[%clk 0:00:33.5]} 55. Ke2 {[%clk 0:00:03.7]} 55... Rg3 {[%clk 0:00:33.5]}
56. Kf2 {[%clk 0:00:03.6]} 56... Rf3+ {[%clk 0:00:33.6]} 57. Kg2 {[%clk
0:00:03.9]} 57... Rf7 {[%clk 0:00:34.5]} 58. Re5 {[%clk 0:00:02.4]} 58... Kb2
{[%clk 0:00:34.2]} 59. Rxe4 {[%clk 0:00:02.8]} 59... Kxa2 {[%clk 0:00:34.3]} 60.
Rxb4 {[%clk 0:00:03.7]} 60... Kb2 {[%clk 0:00:34.2]} 61. Kg3 {[%clk 0:00:02.7]}
61... a2 {[%clk 0:00:34.3]} 62. Ra4 {[%clk 0:00:03.1]} 62... Rb7 {[%clk
0:00:30.1]} 63. g6 {[%clk 0:00:01.8]} 63... hxg6 {[%clk 0:00:29.2]} 64. Rxa2+
{[%clk 0:00:01.4]} 64... Kxa2 {[%clk 0:00:28.9]} 65. Kg4 {[%clk 0:00:02.3]}
65... Rb5 {[%clk 0:00:24.6]} 66. h7 {[%clk 0:00:01.4]} 66... Rh5 {[%clk
0:00:24.2]} 67. b4 {[%clk 0:00:02]} 67... Rxh7 {[%clk 0:00:20.4]} 68. Kg5 {[%clk
0:00:02.3]} 68... Rb7 {[%clk 0:00:20.9]} 0-1

[Event "*** Titled Tuesday Blitz"]
[Site "Chess.com"]
[Date "2020.11.24"]
[Round "5"]
[White "Sharpchess22"]
[Black "BogdanDeac"]
[Result "1/2-1/2"]
[WhiteElo "2816"]
[BlackElo "2899"]
[TimeControl "180+1"]
[EndTime "11:13:18 PST"]
[Termination "Game drawn - insufficient material"]

1. e4 {[%clk 0:03:00.9]} 1... c5 {[%clk 0:02:58.3]} 2. Nf3 {[%clk 0:03:00.5]}
2... d6 {[%clk 0:02:58.5]} 3. d4 {[%clk 0:03:01]} 3... cxd4 {[%clk 0:02:59.4]}
4. Nxd4 {[%clk 0:03:01.6]} 4... Nf6 {[%clk 0:02:59.7]} 5. Nc3 {[%clk 0:03:02.1]}
5... Bd7 {[%clk 0:02:58.6]} 6. Bg5 {[%clk 0:03:00.3]} 6... e6 {[%clk 0:02:57.7]}
7. f4 {[%clk 0:02:59.4]} 7... Be7 {[%clk 0:02:42]} 8. Qd3 {[%clk 0:02:51.6]}
8... a6 {[%clk 0:02:22.1]} 9. O-O-O {[%clk 0:02:40.5]} 9... Nc6 {[%clk
0:02:21.8]} 10. Nxc6 {[%clk 0:02:39.5]} 10... Bxc6 {[%clk 0:02:20.6]} 11. Qe3
{[%clk 0:02:18]} 11... Qa5 {[%clk 0:01:57.5]} 12. Be2 {[%clk 0:02:00.9]} 12...
h6 {[%clk 0:01:51.4]} 13. Bh4 {[%clk 0:01:47.9]} 13... g5 {[%clk 0:00:35.4]} 14.
fxg5 {[%clk 0:01:24.8]} 14... hxg5 {[%clk 0:00:31.4]} 15. Bg3 {[%clk 0:01:24.5]}
15... Qc5 {[%clk 0:00:17.9]} 16. Qd3 {[%clk 0:01:11.6]} 16... O-O-O {[%clk
0:00:17.7]} 17. Rhf1 {[%clk 0:01:06.7]} 17... d5 {[%clk 0:00:17.5]} 18. e5
{[%clk 0:00:59.6]} 18... Ne4 {[%clk 0:00:17.4]} 19. Rxf7 {[%clk 0:00:55.7]}
19... Nxg3 {[%clk 0:00:15.4]} 20. hxg3 {[%clk 0:00:50.2]} 20... Rhf8 {[%clk
0:00:11.5]} 21. Bg4 {[%clk 0:00:45.3]} 21... Rxf7 {[%clk 0:00:05.7]} 22. Bxe6+
{[%clk 0:00:43.9]} 22... Kb8 {[%clk 0:00:06.3]} 23. Bxf7 {[%clk 0:00:43.8]}
23... d4 {[%clk 0:00:07.2]} 24. Ne2 {[%clk 0:00:38.3]} 24... Bb5 {[%clk
0:00:07]} 25. Qe4 {[%clk 0:00:30.1]} 25... d3 {[%clk 0:00:06.8]} 26. Nc3 {[%clk
0:00:29.6]} 26... Qf2 {[%clk 0:00:03.7]} 27. cxd3 {[%clk 0:00:25.1]} 27... Qxf7
{[%clk 0:00:03.3]} 28. d4 {[%clk 0:00:22.2]} 28... Bc4 {[%clk 0:00:02.1]} 29. d5
{[%clk 0:00:20.9]} 29... Rc8 {[%clk 0:00:02]} 30. d6 {[%clk 0:00:18]} 30... Bf8
{[%clk 0:00:01.7]} 31. d7 {[%clk 0:00:17.6]} 31... Rd8 {[%clk 0:00:02]} 32. Nd5
{[%clk 0:00:14.5]} 32... Bxd5 {[%clk 0:00:02.1]} 33. Qxd5 {[%clk 0:00:14.5]}
33... Qxd5 {[%clk 0:00:02]} 34. Rxd5 {[%clk 0:00:15]} 34... Kc7 {[%clk
0:00:02.9]} 35. e6 {[%clk 0:00:15.4]} 35... Kc6 {[%clk 0:00:03.5]} 36. Rd4
{[%clk 0:00:11.9]} 36... Bc5 {[%clk 0:00:03.2]} 37. Rd3 {[%clk 0:00:12]} 37...
Be7 {[%clk 0:00:03]} 38. Kd2 {[%clk 0:00:10]} 38... Rf8 {[%clk 0:00:03.4]} 39.
Kc3 {[%clk 0:00:08.6]} 39... g4 {[%clk 0:00:03.5]} 40. Kc4 {[%clk 0:00:08.1]}
40... b5+ {[%clk 0:00:03.3]} 41. Kb3 {[%clk 0:00:07.9]} 41... a5 {[%clk
0:00:03.6]} 42. a4 {[%clk 0:00:07.4]} 42... bxa4+ {[%clk 0:00:03.8]} 43. Kxa4
{[%clk 0:00:07.4]} 43... Bd8 {[%clk 0:00:04.7]} 44. b3 {[%clk 0:00:04.6]} 44...
Rg8 {[%clk 0:00:03.9]} 45. Re3 {[%clk 0:00:04.5]} 45... Kd6 {[%clk 0:00:04.1]}
46. Kb5 {[%clk 0:00:04]} 46... Ke7 {[%clk 0:00:04.3]} 47. Kc6 {[%clk 0:00:03.9]}
47... Rg5 {[%clk 0:00:04.4]} 48. Kb7 {[%clk 0:00:04.1]} 48... Rc5 {[%clk
0:00:04.4]} 49. Re4 {[%clk 0:00:03.5]} 49... Rb5+ {[%clk 0:00:04.8]} 50. Kc6
{[%clk 0:00:03.6]} 50... Rxb3 {[%clk 0:00:05.4]} 51. Rxg4 {[%clk 0:00:03.6]}
51... Kxe6 {[%clk 0:00:05.5]} 52. Re4+ {[%clk 0:00:04.2]} 52... Kf7 {[%clk
0:00:05.8]} 53. Re8 {[%clk 0:00:05.1]} 53... Rc3+ {[%clk 0:00:06]} 54. Kb7
{[%clk 0:00:05.3]} 54... Rb3+ {[%clk 0:00:05.3]} 55. Kc8 {[%clk 0:00:05.2]}
55... Bf6 {[%clk 0:00:05]} 56. d8=Q {[%clk 0:00:05.5]} 56... Bxd8 {[%clk
0:00:05.3]} 57. Rxd8 {[%clk 0:00:06.4]} 57... a4 {[%clk 0:00:05.8]} 58. Rd5
{[%clk 0:00:06.7]} 58... a3 {[%clk 0:00:05.3]} 59. Ra5 {[%clk 0:00:07.3]} 59...
Ke6 {[%clk 0:00:05.2]} 60. Kc7 {[%clk 0:00:07.8]} 60... Rxg3 {[%clk 0:00:05.2]}
61. Kc6 {[%clk 0:00:07.2]} 61... Kf6 {[%clk 0:00:04]} 62. Ra8 {[%clk 0:00:06]}
62... Ke5 {[%clk 0:00:03.4]} 63. Kc5 {[%clk 0:00:06.2]} 63... Rb3 {[%clk
0:00:03.4]} 64. Kc4 {[%clk 0:00:06.2]} 64... Rg3 {[%clk 0:00:04]} 65. Kb4 {[%clk
0:00:06.6]} 65... Rxg2 {[%clk 0:00:04.5]} 66. Rxa3 {[%clk 0:00:06.2]} 66... Kf4
{[%clk 0:00:04.9]} 67. Kb3 {[%clk 0:00:06.5]} 67... Rg3+ {[%clk 0:00:04.6]} 68.
Kb4 {[%clk 0:00:07.4]} 68... Rxa3 {[%clk 0:00:05.5]} 69. Kxa3 {[%clk 0:00:07.6]}
1/2-1/2

[Event "*** Titled Tuesday Blitz"]
[Site "Chess.com"]
[Date "2020.11.24"]
[Round "5"]
[White "Oleksandr_Bortnyk"]
[Black "AvitalBor"]
[Result "0-1"]
[WhiteElo "2896"]
[BlackElo "2695"]
[TimeControl "180+1"]
[EndTime "11:13:24 PST"]
[Termination "AvitalBor won on time"]

1. e4 {[%clk 0:03:00.9]} 1... e5 {[%clk 0:02:59.5]} 2. Bc4 {[%clk 0:02:54.7]}
2... Nc6 {[%clk 0:02:57.9]} 3. d3 {[%clk 0:02:53.7]} 3... Bc5 {[%clk 0:02:50.8]}
4. Nc3 {[%clk 0:02:34.8]} 4... d6 {[%clk 0:02:39.9]} 5. h3 {[%clk 0:02:27.1]}
5... Na5 {[%clk 0:02:33.4]} 6. Bb3 {[%clk 0:02:23.5]} 6... Nxb3 {[%clk
0:02:32.7]} 7. axb3 {[%clk 0:02:24.4]} 7... a6 {[%clk 0:02:29.9]} 8. Nf3 {[%clk
0:02:16.7]} 8... Ne7 {[%clk 0:02:25.2]} 9. Be3 {[%clk 0:02:16.7]} 9... Nc6
{[%clk 0:02:15.4]} 10. Bxc5 {[%clk 0:02:03.5]} 10... dxc5 {[%clk 0:02:16.3]} 11.
Qd2 {[%clk 0:02:04.4]} 11... f6 {[%clk 0:02:13.3]} 12. Nd5 {[%clk 0:02:01]}
12... Be6 {[%clk 0:02:13]} 13. Ne3 {[%clk 0:02:01.3]} 13... Nd4 {[%clk
0:02:10.5]} 14. Nxd4 {[%clk 0:01:51.9]} 14... cxd4 {[%clk 0:02:09.2]} 15. Nf1
{[%clk 0:01:52.3]} 15... Qd7 {[%clk 0:02:04.7]} 16. Ng3 {[%clk 0:01:48.2]} 16...
h5 {[%clk 0:02:04.6]} 17. f4 {[%clk 0:01:48.1]} 17... h4 {[%clk 0:01:58.9]} 18.
Ne2 {[%clk 0:01:48.4]} 18... O-O-O {[%clk 0:01:57.8]} 19. fxe5 {[%clk
0:01:45.2]} 19... fxe5 {[%clk 0:01:57.6]} 20. Qg5 {[%clk 0:01:45.8]} 20... Qd6
{[%clk 0:01:48.2]} 21. O-O {[%clk 0:01:41]} 21... Rh6 {[%clk 0:01:42.5]} 22. Ra5
{[%clk 0:01:15.7]} 22... c5 {[%clk 0:00:59.5]} 23. b4 {[%clk 0:01:11.2]} 23...
cxb4 {[%clk 0:00:44.8]} 24. Rxe5 {[%clk 0:01:08.2]} 24... Kb8 {[%clk 0:00:31.9]}
25. Qxg7 {[%clk 0:00:53.3]} 25... Rhh8 {[%clk 0:00:28.8]} 26. Qf6 {[%clk
0:00:51]} 26... Bc8 {[%clk 0:00:24.7]} 27. Qxd6+ {[%clk 0:00:43.5]} 27... Rxd6
{[%clk 0:00:25.6]} 28. Kh2 {[%clk 0:00:33]} 28... Rhd8 {[%clk 0:00:24.7]} 29.
Rf2 {[%clk 0:00:24.5]} 29... Rc6 {[%clk 0:00:24.3]} 30. Ng1 {[%clk 0:00:21.4]}
30... b3 {[%clk 0:00:23.3]} 31. cxb3 {[%clk 0:00:21.5]} 31... Rb6 {[%clk
0:00:23.7]} 32. Nf3 {[%clk 0:00:21.2]} 32... Rxb3 {[%clk 0:00:23.9]} 33. Rd2
{[%clk 0:00:21.7]} 33... Rd6 {[%clk 0:00:19.7]} 34. Re8 {[%clk 0:00:17.7]} 34...
Rdb6 {[%clk 0:00:16.7]} 35. Rc2 {[%clk 0:00:14.7]} 35... Rc6 {[%clk 0:00:17]}
36. Rxc6 {[%clk 0:00:14.8]} 36... bxc6 {[%clk 0:00:17.9]} 37. Nxd4 {[%clk
0:00:15.7]} 37... Rxb2 {[%clk 0:00:18]} 38. Nxc6+ {[%clk 0:00:16.1]} 38... Kc7
{[%clk 0:00:18.3]} 39. Ne5 {[%clk 0:00:14.7]} 39... a5 {[%clk 0:00:15]} 40. Nc4
{[%clk 0:00:15]} 40... Ra2 {[%clk 0:00:15.3]} 41. Re5 {[%clk 0:00:10.6]} 41...
a4 {[%clk 0:00:14.6]} 42. Rc5+ {[%clk 0:00:11.2]} 42... Kd8 {[%clk 0:00:12.9]}
43. d4 {[%clk 0:00:11.2]} 43... Rc2 {[%clk 0:00:10.3]} 44. Rd5+ {[%clk
0:00:03.5]} 44... Ke7 {[%clk 0:00:09.8]} 45. Nb6 {[%clk 0:00:02.8]} 45... Be6
{[%clk 0:00:09.6]} 46. Re5 {[%clk 0:00:02.1]} 46... a3 {[%clk 0:00:09.5]} 47. d5
{[%clk 0:00:02]} 47... a2 {[%clk 0:00:09.7]} 48. Rxe6+ {[%clk 0:00:02.7]} 48...
Kd8 {[%clk 0:00:06.9]} 49. d6 {[%clk 0:00:01.6]} 49... a1=Q {[%clk 0:00:06.1]}
50. d7 {[%clk 0:00:02.2]} 50... Rxg2+ {[%clk 0:00:03.4]} 51. Kxg2 {[%clk
0:00:02.2]} 51... Qa2+ {[%clk 0:00:04.3]} 52. Kf3 {[%clk 0:00:02.7]} 52... Qxe6
{[%clk 0:00:05.2]} 53. Nd5 {[%clk 0:00:03]} 53... Qf7+ {[%clk 0:00:04.8]} 54.
Kg4 {[%clk 0:00:03.2]} 54... Kxd7 {[%clk 0:00:05.7]} 55. Kxh4 {[%clk 0:00:03.5]}
55... Qh7+ {[%clk 0:00:05.3]} 56. Kg5 {[%clk 0:00:03.5]} 56... Qg7+ {[%clk
0:00:05.6]} 57. Kf5 {[%clk 0:00:03.2]} 57... Qh7+ {[%clk 0:00:06.5]} 58. Kg5
{[%clk 0:00:03]} 58... Qxh3 {[%clk 0:00:06.6]} 59. Kf4 {[%clk 0:00:03.5]} 59...
Qh4+ {[%clk 0:00:06.7]} 60. Ke5 {[%clk 0:00:03.4]} 60... Ke8 {[%clk 0:00:07.2]}
61. Kf5 {[%clk 0:00:03.6]} 61... Qf2+ {[%clk 0:00:07.1]} 62. Ke5 {[%clk
0:00:04]} 62... Kf7 {[%clk 0:00:06.7]} 63. Kd6 {[%clk 0:00:04.2]} 63... Kg6
{[%clk 0:00:06.4]} 64. e5 {[%clk 0:00:04.6]} 64... Qf8+ {[%clk 0:00:05.2]} 65.
Kd7 {[%clk 0:00:04.9]} 65... Qf5+ {[%clk 0:00:04.7]} 66. Kd6 {[%clk 0:00:05.1]}
66... Kf7 {[%clk 0:00:05.1]} 67. Nc7 {[%clk 0:00:05.7]} 67... Qd3+ {[%clk
0:00:04.9]} 68. Nd5 {[%clk 0:00:06.2]} 68... Qa6+ {[%clk 0:00:05]} 69. Kd7
{[%clk 0:00:06.8]} 69... Qe6+ {[%clk 0:00:04.8]} 0-1